fUST/lending_fUST_20260117
["ID","MTS","AMOUNT","RATE_DAILY","PERIOD"]
[402216638,1768606292025,-500.0,0.00023013,3]
[402216639,1768606292035,-1122.88,0.00023013,3]
[402216640,1768606292045,-500.0,0.00023013,3]
[402216641,1768606292054,-500.0,0.00023013,3]
[402216642,1768606292064,-505.49,0.00023013,3]
[402216643,1768606292073,-816.59,0.00023013,2]
[402216644,1768606292083,-500.0,0.00023013,3]
[402216645,1768606292093,-500.0,0.00023013,3]
[402216646,1768606292102,-500.0,0.00023013,3]
[402216647,1768606292111,-500.0,0.00023013,3]
[402216648,1768606292121,-1501.63,0.00023013,3]
[402216649,1768606292130,-500.0,0.00023013,3]
[402216650,1768606292140,-564.01,0.00023013,3]
[402216651,1768606292150,-983.25,0.00023013,3]
[402216652,1768606292160,-441.20709906,0.00023013,3]
[402216653,1768606292169,-1925.58,0.00023013,3]
[402216654,1768606292179,-500.0,0.00023013,3]
[402216655,1768606292188,-500.0,0.00023013,3]
[402216656,1768606292198,-1993.75,0.00023013,3]
[402216657,1768606292208,-849.14,0.00023013,3]
[402216658,1768606292218,-1057.71,0.00023013,3]
[402216659,1768606292227,-500.0,0.00023013,3]
[402216660,1768606292236,-529.03425476,0.00023013,3]
[402216661,1768606292246,-565.62,0.00023013,3]
[402216662,1768606292255,-500.0,0.00023013,3]
[402216663,1768606292267,-687.65,0.00023013,3]
[402216664,1768606292276,-509.00344508,0.00023013,3]
[402216665,1768606292285,-500.0,0.00023013,3]
[402216666,1768606292295,-512.27,0.00023013,3]
[402216667,1768606292304,-673.96,0.00023013,3]
[402216668,1768606292313,-568.94808876,0.00023013,3]
[402216669,1768606292323,-500.0,0.00023013,3]
[402216670,1768606292332,-1453.5,0.00023013,3]
[402216671,1768606292342,-1572.38,0.00023013,3]
[402216672,1768606292352,-595.80956303,0.00023013,3]
[402216673,1768606292361,-657.4,0.00023013,3]
[402216674,1768606292370,-500.0,0.00023013,3]
[402216675,1768606292380,-500.0,0.00023013,3]
[402216676,1768606292389,-602.92,0.00023013,3]
[402216677,1768606292399,-1264.0,0.00023013,3]
[402216678,1768606292409,-500.0,0.00023013,3]
[402216679,1768606292418,-1118.7,0.00023013,3]
[402216680,1768606292428,-1202.15,0.00023013,3]
[402216681,1768606292437,-500.0,0.00023013,3]
[402216682,1768606292448,-1418.91,0.00023013,3]
[402216683,1768606292458,-1004.8,0.00023013,3]
[402216684,1768606292468,-1060.6,0.00023013,3]
[402216685,1768606292477,-500.0,0.00023013,3]
[402216686,1768606292487,-981.72,0.00023013,3]
[402216687,1768606292496,-500.0,0.00023013,3]
[402216688,1768606292506,-500.0,0.00023013,3]
[402216689,1768606292515,-542.78,0.00023013,3]
[402216690,1768606292525,-500.0,0.00023013,3]
[402216691,1768606292535,-500.0,0.00023013,3]
[402216692,1768606292544,-500.0,0.00023013,3]
[402216693,1768606292554,-500.0,0.00023013,3]
[402216694,1768606292563,-605.51407588,0.00023013,3]
[402216695,1768606292573,-603.03,0.00023013,3]
[402216696,1768606292584,-756.59,0.00023013,3]
[402216697,1768606292594,-500.0,0.00023013,3]
[402216698,1768606292604,-500.0,0.00023013,3]
[402216699,1768606292616,-675.18,0.00023013,3]
[402216700,1768606292626,-741.82,0.00023013,3]
[402216701,1768606292635,-500.0,0.00023013,3]
[402216702,1768606292647,-655.85,0.00023013,3]
[402216703,1768606292657,-886.23,0.00023013,3]
[402216704,1768606292667,-500.0,0.00023013,3]
[402216705,1768606292676,-855.17,0.00023013,3]
[402216706,1768606292686,-500.0,0.00023013,3]
[402216707,1768606292695,-1710.56,0.00023013,3]
[402216708,1768606292704,-500.0,0.00023013,3]
[402216709,1768606292714,-661.66,0.00023013,3]
[402216710,1768606292723,-500.0,0.00023013,3]
[402216711,1768606292732,-500.0,0.00023013,3]
[402216712,1768606292741,-500.0,0.00023013,2]
[402216713,1768606292751,-500.0,0.00023013,3]
[402216714,1768606292760,-500.0,0.00023013,3]
[402216715,1768606292769,-500.0,0.00023013,3]
[402216716,1768606292779,-500.0,0.00023013,3]
[402216717,1768606292788,-500.0,0.00023013,3]
[402216718,1768606292797,-933.57,0.00023013,3]
[402216719,1768606292807,-500.0,0.00023013,3]
[402216720,1768606292816,-500.0,0.00023013,3]
[402216721,1768606292826,-500.0,0.00023013,3]
[402216722,1768606292838,-500.0,0.00023013,3]
[402216723,1768606292847,-525.64,0.00023013,3]
[402216724,1768606292857,-500.0,0.00023013,3]
[402216725,1768606292867,-500.0,0.00023013,3]
[402216726,1768606292876,-1221.91,0.00023013,3]
[402216727,1768606292886,-500.0,0.00023013,3]
[402216728,1768606292896,-633.20867898,0.00023013,3]
[402216729,1768606292907,-500.0,0.00023013,3]
[402216730,1768606292916,-1263.43,0.00023013,3]
[402216731,1768606292925,-1622.98,0.00023013,3]
[402216732,1768606292935,-500.0,0.00023013,3]
[402216733,1768606292953,-500.0,0.00023013,3]
[402216734,1768606292963,-500.0,0.00023013,3]
[402216735,1768606292973,-500.0,0.00023013,3]
[402216736,1768606292985,-500.0,0.00023013,3]
[402216737,1768606292994,-500.0,0.00023013,3]
[402216738,1768606293004,-500.0,0.00023013,3]
[402216739,1768606293014,-976.58,0.00023013,3]
[402216740,1768606293023,-1186.99,0.00023013,3]
[402216741,1768606293033,-1159.08,0.00023013,3]
[402216742,1768606293042,-500.0,0.00023013,3]
[402216743,1768606293053,-500.0,0.00023013,3]
[402216744,1768606293063,-676.08,0.00023013,3]
[402216745,1768606293072,-713.98,0.00023013,3]
[402216746,1768606293082,-525.2,0.00023013,3]
[402216747,1768606293091,-543.89,0.00023013,3]
[402216748,1768606293101,-500.0,0.00023013,3]
[402216749,1768606293111,-500.0,0.00023013,3]
[402216750,1768606293120,-1200.0,0.00023013,3]
[402216751,1768606293130,-500.0,0.00023013,3]
[402216752,1768606293139,-500.0,0.00023013,3]
[402216753,1768606293148,-2080.52,0.00023013,3]
[402216754,1768606293158,-546.51,0.00023013,3]
[402216755,1768606293170,-500.0,0.00023013,3]
[402216756,1768606293180,-500.0,0.00023013,3]
[402216757,1768606293190,-685.41,0.00023013,3]
[402216758,1768606293199,-500.0,0.00023013,3]
[402216759,1768606293209,-500.0,0.00023013,3]
[402216760,1768606293219,-500.0,0.00023013,3]
[402216761,1768606293228,-607.2,0.00023013,3]
[402216762,1768606293238,-500.0,0.00023013,3]
[402216763,1768606293248,-504.06,0.00023013,3]
[402216764,1768606293258,-500.0,0.00023013,3]
[402216765,1768606293267,-768.23,0.00023013,3]
[402216766,1768606293277,-500.0,0.00023013,3]
[402216767,1768606293286,-500.0,0.00023013,3]
[402216768,1768606293296,-500.0,0.00023013,3]
[402216769,1768606293306,-500.0,0.00023013,3]
[402216770,1768606293315,-500.0,0.00023013,3]
[402216771,1768606293325,-500.0,0.00023013,3]
[402216772,1768606293334,-931.4,0.00023013,3]
[402216773,1768606293343,-1364.94,0.00023013,3]
[402216774,1768606293352,-500.0,0.00023013,3]
[402216775,1768606293362,-500.0,0.00023013,3]
[402216776,1768606293371,-982.13,0.00023013,3]
[402216777,1768606293380,-502.37,0.00023013,3]
[402216778,1768606293390,-525.93,0.00023013,3]
[402216779,1768606293399,-500.0,0.00023013,3]
[402216780,1768606293408,-1015.39,0.00023013,3]
[402216781,1768606293417,-1469.77,0.00023013,3]
[402216782,1768606293427,-1568.63,0.00023013,3]
[402216783,1768606293437,-500.0,0.00023013,3]
[402216784,1768606293446,-500.0,0.00023013,3]
[402216785,1768606293455,-500.0,0.00023013,3]
[402216786,1768606293465,-500.0,0.00023013,3]
[402216787,1768606293474,-500.0,0.00023013,3]
[402216788,1768606293484,-500.0,0.00023013,3]
[402216789,1768606293493,-2478.08,0.00023013,3]
[402216790,1768606293503,-500.0,0.00023013,3]
[402216791,1768606293513,-500.0,0.00023013,3]
[402216792,1768606293522,-839.15,0.00023013,3]
[402216793,1768606293532,-500.0,0.00023013,3]
[402216794,1768606293542,-500.0,0.00023013,3]
[402216795,1768606293551,-500.0,0.00023013,3]
[402216796,1768606293561,-500.0,0.00023013,3]
[402216797,1768606293570,-500.0,0.00023013,3]
[402216798,1768606293579,-627.89,0.00023013,3]
[402216799,1768606293589,-500.0,0.00023013,3]
[402216800,1768606293599,-643.23,0.00023013,3]
[402216801,1768606293609,-261.25662774,0.00023013,3]
[402216802,1768606293619,-2041.61,0.00023013,3]
[402216803,1768606293628,-500.0,0.00023013,3]
[402216804,1768606293638,-500.0,0.00023013,3]
[402216805,1768606293647,-500.0,0.00023013,3]
[402216806,1768606293656,-500.0,0.00023013,3]
[402216807,1768606293666,-883.96,0.00023013,3]
[402216808,1768606293675,-500.0,0.00023013,3]
[402216809,1768606293684,-972.04,0.00023013,3]
[402216810,1768606293693,-500.0,0.00023013,3]
[402216811,1768606293702,-500.0,0.00023013,3]
[402216812,1768606293712,-838.66,0.00023013,3]
[402216813,1768606293722,-1000.0,0.00023013,2]
[402216814,1768606293731,-500.0,0.00023013,3]
[402216815,1768606293740,-500.0,0.00023013,3]
[402216816,1768606293749,-1118.18,0.00023013,3]
[402216817,1768606293758,-752.46,0.00023013,3]
[402216818,1768606293767,-1177.42,0.00023013,3]
[402216819,1768606293776,-500.0,0.00023013,3]
[402216820,1768606293786,-500.0,0.00023013,3]
[402216821,1768606293800,-823.41,0.00023013,3]
[402216822,1768606293810,-1019.12,0.00023013,3]
[402216823,1768606293819,-760.5,0.00023013,3]
[402216824,1768606293828,-1342.67,0.00023013,3]
[402216825,1768606293837,-500.0,0.00023013,3]
[402216826,1768606293847,-1683.6,0.00023013,3]
[402216827,1768606293855,-500.0,0.00023013,3]
[402216828,1768606293865,-863.28,0.00023013,3]
[402216829,1768606293874,-500.0,0.00023013,3]
[402216830,1768606293885,-884.65,0.00023013,3]
[402216831,1768606293895,-500.0,0.00023013,3]
[402216832,1768606293906,-1291.69,0.00023013,3]
[402216833,1768606293917,-500.0,0.00023013,3]
[402216834,1768606293927,-1793.94,0.00023013,3]
[402216835,1768606293936,-500.0,0.00023013,3]
[402216836,1768606293947,-1564.17,0.00023013,3]
[402216837,1768606293956,-500.0,0.00023013,3]
[402216838,1768606293966,-675.11,0.00023013,3]
[402216839,1768606293975,-1119.18,0.00023013,3]
[402216840,1768606293985,-510.35368304,0.00023013,3]
[402216841,1768606293994,-500.0,0.00023013,3]
[402216842,1768606294004,-500.0,0.00023013,3]
[402216843,1768606294014,-1730.4,0.00023013,3]
[402216844,1768606294023,-1188.4,0.00023013,3]
[402216845,1768606294032,-500.0,0.00023013,3]
[402216846,1768606294041,-2229.1,0.00023013,3]
[402216847,1768606294050,-619.66,0.00023013,3]
[402216848,1768606294059,-500.0,0.00023013,3]
[402216849,1768606294068,-1783.86,0.00023013,3]
[402216850,1768606294077,-500.0,0.00023013,3]
[402216851,1768606294086,-535.55,0.00023013,3]
[402216852,1768606294095,-2935.53,0.00023013,3]
[402216853,1768606294105,-507.24,0.00023013,3]
[402216854,1768606294115,-672.51,0.00023013,3]
[402216855,1768606294125,-2562.85,0.00023013,3]
[402216856,1768606294134,-716.67,0.00023013,3]
[402216857,1768606294143,-500.0,0.00023013,3]
[402216858,1768606294152,-526.31720498,0.00023013,3]
[402216859,1768606294162,-1206.65,0.00023013,3]
[402216860,1768606294171,-1965.15,0.00023013,3]
[402216861,1768606294180,-500.0,0.00023013,3]
[402216862,1768606294189,-500.0,0.00023013,3]
[402216863,1768606294198,-2225.62,0.00023013,3]
[402216864,1768606294207,-500.0,0.00023013,3]
[402216865,1768606294216,-500.0,0.00023013,3]
[402216866,1768606294227,-1014.11,0.00023013,3]
[402216867,1768606294236,-500.0,0.00023013,3]
[402216868,1768606294246,-500.0,0.00023013,3]
[402216869,1768606294256,-534.52,0.00023013,3]
[402216870,1768606294266,-500.0,0.00023013,3]
[402216871,1768606294276,-745.47,0.00023013,3]
[402216872,1768606294285,-870.56,0.00023013,3]
[402216873,1768606294294,-500.0,0.00023013,3]
[402216874,1768606294303,-500.0,0.00023013,3]
[402216875,1768606294312,-1471.9,0.00023013,3]
[402216876,1768606294322,-500.0,0.00023013,3]
[402216877,1768606294331,-614.54879327,0.00023013,3]
[402216878,1768606294340,-641.94,0.00023013,3]
[402216879,1768606294349,-958.68,0.00023013,3]
[402216880,1768606294359,-500.0,0.00023013,3]
[402216881,1768606294369,-1251.47,0.00023013,3]
[402216882,1768606294378,-500.0,0.00023013,3]
[402216883,1768606294388,-1514.63,0.00023013,3]
[402216884,1768606294397,-500.0,0.00023013,3]
[402216885,1768606294406,-1010.64,0.00023013,3]
[402216886,1768606294417,-500.0,0.00023013,3]
[402216887,1768606294427,-500.0,0.00023013,3]
[402216888,1768606294436,-1136.87,0.00023013,3]
[402216889,1768606294446,-500.0,0.00023013,3]
[402216890,1768606294456,-1742.45,0.00023013,3]
[402216891,1768606294468,-500.0,0.00023013,3]
[402216892,1768606294477,-500.0,0.00023013,3]
[402216893,1768606294487,-8798.3,0.00023013,3]
[402216894,1768606294496,-500.0,0.00023013,3]
[402216895,1768606294506,-500.0,0.00023013,3]
[402216896,1768606294516,-967.4,0.00023013,3]
[402216897,1768606294525,-500.0,0.00023013,3]
[402216898,1768606294535,-1065.68,0.00023013,3]
[402216899,1768606294546,-500.0,0.00023013,3]
[402216900,1768606294555,-730.62,0.00023013,3]
[402216901,1768606294565,-500.0,0.00023013,3]
[402216902,1768606294575,-500.0,0.00023013,3]
[402216903,1768606294584,-331.7667432,0.00023013,3]
[402216904,1768606296005,-3e-08,0.00011716,2]
[402216905,1768606296023,-150.99999997,0.00011716,2]
[402216906,1768606296033,-154.07167593,0.00011716,2]
[402216907,1768606296043,-719.31,0.00021917,3]
[402216908,1768606296053,-500.0,0.00021917,3]
[402216909,1768606296063,-719.31,0.00022191,3]
[402216910,1768606296073,-500.0,0.00022191,3]
[402216911,1768606296083,-500.0,0.00022465,3]
[402216912,1768606296092,-162.82626095,0.00022465,3]
[402216913,1768606297254,-1364.0,0.00020498,10]
[402216914,1768606297264,-459.0,0.00020498,10]
[402216915,1768606297273,-558.0,0.00020498,10]
[402216916,1768606297282,-100.35967208,0.00021918,2]
[402216917,1768606297294,-50.64032792,0.00021918,2]
[402216918,1768606297303,-151.0,0.00021918,2]
[402216919,1768606297312,-151.0,0.00021918,2]
[402216920,1768606297321,-151.0,0.00021918,2]
[402216921,1768606297330,-556.48373905,0.00022465,3]
[402216922,1768606297339,-304.52614307,0.00022465,3]
[402216923,1768606297348,-500.0,0.00022739,3]
[402216924,1768606297358,-719.31,0.00022739,3]
[402216925,1768606297367,-153.0,0.0002274,2]
[402216926,1768606297376,-168.2332568,0.00023013,3]
[402216927,1768606297385,-1136.85,0.00023013,3]
[402216928,1768606297395,-1019.22,0.00023013,3]
[402216929,1768606297404,-500.0,0.00023013,3]
[402216930,1768606297414,-500.0,0.00023013,3]
[402216931,1768606297423,-2175.53,0.00023013,3]
[402216932,1768606297432,-500.0,0.00023013,3]
[402216933,1768606297442,-500.0,0.00023013,3]
[402216934,1768606297452,-500.0,0.00023013,3]
[402216935,1768606297462,-715.38,0.00023013,3]
[402216936,1768606297471,-500.0,0.00023013,3]
[402216937,1768606297480,-500.0,0.00023013,3]
[402216938,1768606297490,-283.08791413,0.00023013,3]
[402216939,1768606297501,-500.0,0.00023013,3]
[402216940,1768606297510,-1585.23,0.00023013,3]
[402216941,1768606297520,-500.0,0.00023013,3]
[402216942,1768606297530,-198.92417039,0.00023013,3]
[402216943,1768606297539,-1070.68,0.00023013,3]
[402216944,1768606297549,-1543.79,0.00023013,3]
[402216945,1768606297558,-500.0,0.00023013,3]
[402216946,1768606297567,-787.13,0.00023013,3]
[402216947,1768606297576,-500.0,0.00023013,3]
[402216948,1768606297585,-500.0,0.00023013,3]
[402216949,1768606297594,-500.0,0.00023013,3]
[402216950,1768606297603,-500.0,0.00023013,3]
[402216951,1768606297613,-500.0,0.00023013,3]
[402216952,1768606297621,-780.92184468,0.00023013,3]
[402217000,1768606679921,152.57,9.99e-06,2]
[402217047,1768606806635,-166.62,9.02e-05,2]
[402217048,1768606806661,-344.66627544,9.02e-05,2]
[402217078,1768606882222,-201.33372456,9.02e-05,2]
[402217079,1768606882250,-7.59725222,9.208e-05,2]
[402217149,1768607221493,179.63,8.659e-05,2]
[402217170,1768607293651,168.2,8.519e-05,2]
[402217171,1768607366132,157.49,8.717e-05,2]
[402217195,1768607431891,-550.0,9.256e-05,2]
[402217196,1768607431901,-237.96578377,9.256e-05,2]
[402217197,1768607431910,-188.99,9.298e-05,2]
[402217198,1768607431919,-220.49,9.879e-05,2]
[402217199,1768607431929,-251.99,0.00010461,2]
[402217201,1768607431939,-2176.50210497,0.00010791,2]
[402217203,1768607431948,-869.36281385,0.00010845,2]
[402217206,1768607431959,-1130.63718615,0.00010845,2]
[402217209,1768607431969,-2000.0,0.00010853,2]
[402217212,1768607431979,-1200.0,0.0001086,2]
[402217215,1768607431988,-300.0,0.00010861,2]
[402217218,1768607431998,-2000.0,0.00010862,2]
[402217220,1768607432007,-2000.0,0.00010871,2]
[402217222,1768607432016,-2000.0,0.0001088,2]
[402217223,1768607432026,-2000.0,0.00010889,2]
[402217226,1768607432036,-2000.0,0.00010941,2]
[402217228,1768607432046,-2000.0,0.0001095,2]
[402217230,1768607432056,-2000.0,0.00010959,2]
[402217232,1768607432065,-1902.05150548,0.00010959,2]
[402217234,1768607432075,-283.49,0.00011042,2]
[402217236,1768607432085,-280.79962485,0.00011256,2]
[402217238,1768607432094,-314.99,0.00011623,2]
[402217239,1768607432104,-420.0,0.00011937,2]
[402217240,1768607432114,-250.0,0.00012007,2]
[402217241,1768607432123,-7704.73130439,0.000129,2]
[402217242,1768607432133,-7704.73130435,0.00012944,2]
[402217243,1768607432142,-587.95731061,0.00012947,2]
[402217244,1768607432151,-323.63346593,0.00013256,2]
[402217245,1768607432160,-271.86141758,0.00013273,2]
[402217246,1768607432170,-289.20182477,0.00013273,2]
[402217247,1768607432179,-500.0,0.00013273,2]
[402217248,1768607432190,-500.0,0.00013273,2]
[402217249,1768607432200,-500.0,0.00013273,2]
[402217250,1768607432209,-500.0,0.00013273,2]
[402217251,1768607432219,-556.99110983,0.00013273,2]
[402217252,1768607432231,-500.0,0.00013698,2]
[402217253,1768607432241,-500.0,0.00013698,2]
[402217254,1768607432251,-500.0,0.00013698,2]
[402217255,1768607432261,-500.0,0.00013698,2]
[402217256,1768607432270,-500.0,0.00013698,2]
[402217257,1768607432281,-500.0,0.00013698,2]
[402217258,1768607432291,-500.0,0.00013699,2]
[402217259,1768607432300,-509.9956462,0.00013699,2]
[402217260,1768607432310,-1000.0,0.00013821,2]
[402217261,1768607432319,-1644.0,0.00013865,2]
[402217262,1768607432329,-165.55006213,0.00013964,2]
[402217263,1768607432339,-509.29629629,0.00013964,2]
[402217264,1768607432350,-500.0,0.00013964,2]
[402217265,1768607432359,-500.0,0.00013964,2]
[402217266,1768607432368,-500.0,0.00013964,2]
[402217267,1768607432378,-500.0,0.00013964,2]
[402217268,1768607432387,-500.0,0.00013964,2]
[402217269,1768607432397,-500.0,0.00013964,2]
[402217270,1768607432406,-500.0,0.00013964,2]
[402217271,1768607432415,-500.0,0.00013964,2]
[402217272,1768607432424,-500.0,0.00013964,2]
[402217273,1768607432434,-500.0,0.00013964,2]
[402217274,1768607432443,-500.0,0.00013964,2]
[402217275,1768607432453,-500.0,0.00013964,2]
[402217276,1768607432462,-500.0,0.00013964,2]
[402217277,1768607432471,-500.0,0.00013964,2]
[402217278,1768607432481,-500.0,0.00013964,2]
[402217279,1768607432490,-500.0,0.00013964,2]
[402217280,1768607432499,-500.0,0.00013964,2]
[402217281,1768607432509,-500.0,0.00013964,2]
[402217282,1768607432518,-500.0,0.00013964,2]
[402217283,1768607432527,-500.0,0.00013964,2]
[402217284,1768607432535,-500.0,0.00013964,2]
[402217285,1768607432544,-500.0,0.00013964,2]
[402217286,1768607432553,-500.0,0.00013964,2]
[402217287,1768607432563,-500.0,0.00013964,2]
[402217288,1768607432572,-500.0,0.00013964,2]
[402217289,1768607432581,-500.0,0.00013964,2]
[402217290,1768607432589,-500.0,0.00013964,2]
[402217291,1768607432599,-500.0,0.00013964,2]
[402217292,1768607432607,-500.0,0.00013964,2]
[402217293,1768607432618,-500.0,0.00013964,2]
[402217294,1768607432627,-500.0,0.00013964,2]
[402217295,1768607432638,-500.0,0.00013964,2]
[402217296,1768607432647,-500.0,0.00013964,2]
[402217297,1768607432656,-500.0,0.00013964,2]
[402217298,1768607432665,-500.0,0.00013964,2]
[402217299,1768607432674,-500.0,0.00013964,2]
[402217300,1768607432683,-500.0,0.00013964,2]
[402217301,1768607432692,-500.0,0.00013964,2]
[402217302,1768607432702,-500.0,0.00013964,2]
[402217303,1768607432712,-500.0,0.00013964,2]
[402217304,1768607432721,-500.0,0.00013964,2]
[402217305,1768607432730,-500.0,0.00013964,2]
[402217306,1768607432739,-500.0,0.00013964,2]
[402217307,1768607432749,-500.0,0.00013964,2]
[402217308,1768607432758,-500.0,0.00013964,2]
[402217309,1768607432767,-500.0,0.00013964,2]
[402217310,1768607432776,-500.0,0.00013964,2]
[402217311,1768607432786,-500.0,0.00013964,2]
[402217312,1768607432795,-500.0,0.00013964,2]
[402217313,1768607432805,-596.50392821,0.00013964,2]
[402217314,1768607432815,-500.0,0.00013964,2]
[402217315,1768607432825,-500.0,0.00013964,2]
[402217316,1768607432835,-500.0,0.00013964,2]
[402217317,1768607432845,-500.0,0.00013964,2]
[402217318,1768607432855,-500.0,0.00013964,2]
[402217319,1768607432865,-500.0,0.00013964,2]
[402217320,1768607432874,-500.0,0.00013964,2]
[402217321,1768607432883,-500.0,0.00013964,2]
[402217322,1768607432893,-500.0,0.00013964,2]
[402217323,1768607432903,-500.0,0.00013964,2]
[402217324,1768607432913,-500.0,0.00013964,2]
[402217325,1768607432922,-500.0,0.00013964,2]
[402217326,1768607432932,-500.0,0.00013964,2]
[402217327,1768607432941,-500.0,0.00013964,2]
[402217328,1768607432950,-500.0,0.00013964,2]
[402217329,1768607432960,-500.0,0.00013964,2]
[402217330,1768607432969,-500.0,0.00013964,2]
[402217331,1768607432978,-500.0,0.00013964,2]
[402217332,1768607432988,-500.0,0.00013964,2]
[402217333,1768607432998,-500.0,0.00013964,2]
[402217334,1768607433007,-200.0,0.00013964,2]
[402217335,1768607433017,-500.0,0.00013964,2]
[402217336,1768607433026,-500.0,0.00013964,2]
[402217337,1768607433035,-350.0,0.00013964,2]
[402217338,1768607433044,-500.0,0.00013964,2]
[402217339,1768607433054,-500.0,0.00013964,2]
[402217340,1768607433063,-500.0,0.00013964,2]
[402217341,1768607433072,-398.4111883,0.00013964,2]
[402217342,1768607433081,-500.0,0.00013964,2]
[402217343,1768607433091,-500.0,0.00013964,2]
[402217344,1768607433100,-500.0,0.00013964,2]
[402217345,1768607433109,-500.0,0.00013964,2]
[402217346,1768607433118,-500.0,0.00013964,2]
[402217347,1768607433128,-500.0,0.00013964,2]
[402217348,1768607433137,-500.0,0.00013964,2]
[402217349,1768607433146,-500.0,0.00013964,2]
[402217350,1768607433155,-500.0,0.00013964,2]
[402217351,1768607433164,-500.0,0.00013964,2]
[402217352,1768607433173,-500.0,0.00013964,2]
[402217353,1768607433183,-500.0,0.00013964,2]
[402217354,1768607433192,-600.0,0.00013964,2]
[402217355,1768607433201,-500.0,0.00013964,2]
[402217356,1768607433210,-500.0,0.00013964,2]
[402217357,1768607433219,-500.0,0.00013964,2]
[402217358,1768607433230,-500.0,0.00013964,2]
[402217359,1768607433240,-500.0,0.00013964,2]
[402217360,1768607433250,-500.0,0.00013964,2]
[402217361,1768607433259,-500.0,0.00013964,2]
[402217362,1768607433268,-500.0,0.00013971,2]
[402217363,1768607433278,-3698.76822791,0.00013981,2]
[402217364,1768607433287,-500.0,0.00013998,2]
[402217365,1768607433301,-500.0,0.00013998,2]
[402217366,1768607433311,-500.0,0.00014005,2]
[402217367,1768607433320,-500.0,0.00014005,2]
[402217368,1768607433329,-500.0,0.00014005,2]
[402217369,1768607433338,-500.0,0.00014005,2]
[402217370,1768607433347,-500.0,0.00014005,2]
[402217371,1768607433357,-500.0,0.00014005,2]
[402217372,1768607433376,-500.0,0.00014005,2]
[402217373,1768607433385,-500.0,0.00014005,2]
[402217374,1768607433394,-500.0,0.00014005,2]
[402217375,1768607433404,-500.0,0.00014005,2]
[402217376,1768607433413,-500.0,0.00014005,2]
[402217377,1768607433422,-500.0,0.00014005,2]
[402217378,1768607433432,-500.0,0.00014005,2]
[402217379,1768607433441,-536.42,0.00014005,2]
[402217380,1768607433451,-500.0,0.00014005,2]
[402217381,1768607433460,-500.0,0.00014005,2]
[402217382,1768607433469,-500.0,0.00014005,2]
[402217383,1768607433479,-449.90170542,0.00014005,2]
[402217384,1768607433492,-50.09829458,0.00014005,2]
[402217385,1768607433501,-500.0,0.00014005,2]
[402217386,1768607433511,-47.9242638,0.00014247,2]
[402217387,1768607433522,-452.0757362,0.00014247,2]
[402217388,1768607433531,-356.03,0.0001441,2]
[402217389,1768607433541,-934.44438239,0.0001451,2]
[402217591,1768607443434,-500.0,0.00013964,2]
[402217593,1768607443443,-500.0,0.00013964,2]
[402217595,1768607443452,-212.58995986,0.0001451,2]
[402217597,1768607443462,-1644.0,0.00014551,2]